{"text_format":"3","workbook":"xlsx","n_sheets":3,"sheets":["Лист1","Лист2","Лист3"],"read":"whole","date_system":"1900"}

{"sheet":"Лист1","index":0,"n_rows":150,"n_cols":14,"rows_kept":150,"merged":[[0,2,0,5],[1,2,1,5],[7,0,8,0],[7,1,8,2],[7,3,8,3],[7,4,8,4],[7,5,8,5],[7,6,8,6],[9,1,9,2],[10,1,10,2],[11,1,11,2],[12,1,12,2],[13,1,13,2],[14,1,14,2],[15,1,15,2],[16,1,16,2],[17,1,17,2],[18,1,18,2],[19,1,19,2],[20,1,20,2],[21,1,21,2],[22,1,22,2],[23,1,23,2],[24,1,24,2],[25,1,25,2],[26,1,26,2],[27,1,27,2],[28,1,28,2],[29,1,29,2],[30,1,30,2],[31,1,31,2],[32,1,32,2],[33,1,33,2],[34,1,34,2],[35,1,35,2],[37,1,37,2],[38,1,38,2],[40,1,40,2],[44,2,44,4],[44,5,44,6],[48,0,48,4],[49,2,49,4],[50,2,50,4],[51,0,51,4],[52,2,52,4],[53,2,53,4],[54,2,54,4],[55,0,55,4],[56,2,56,4],[57,2,57,4],[58,0,58,4],[59,2,59,4],[60,2,60,4],[61,2,61,4],[62,2,62,4],[63,2,63,4],[64,0,64,4],[65,2,65,4],[66,2,66,4],[67,0,67,4],[68,2,68,4],[69,2,69,4],[70,2,70,4],[71,0,71,4],[72,2,72,4],[73,2,73,4],[74,2,74,4],[75,2,75,4],[76,2,76,4],[77,2,77,4],[78,2,78,4],[79,2,79,4],[80,2,80,4],[81,2,81,4],[82,2,82,4],[83,2,83,4],[84,2,84,4],[85,2,85,4],[86,2,86,4],[87,2,87,4],[88,2,88,4],[89,0,89,4],[90,2,90,4],[91,2,91,4],[92,2,92,4],[93,2,93,4],[94,2,94,4],[95,2,95,4],[96,2,96,4],[97,2,97,4],[98,2,98,4],[99,2,99,4],[100,2,100,4],[101,2,101,4],[102,2,102,4],[103,2,103,4],[104,2,104,4],[105,2,105,4],[106,2,106,4],[107,2,107,4],[108,2,108,4],[109,2,109,4],[110,2,110,4],[111,0,111,4],[112,2,112,4],[113,2,113,4],[114,2,114,4],[115,2,115,4],[116,2,116,4],[117,0,117,4],[118,2,118,4],[119,2,119,4],[120,2,120,4],[121,2,121,4],[122,2,122,4],[123,0,123,4],[124,2,124,4],[125,2,125,4],[126,2,126,4],[127,2,127,4],[128,2,128,4],[129,2,129,4],[130,2,130,4],[131,2,131,4],[132,2,132,4],[133,2,133,4],[134,2,134,4]]}
[null,null,"Расшифровка  сметы доходов и расходов по МАДОУ \" Детский сад № 404\""]
[null,null,"от организации платных образовательных и иных  услуг на 2018 год"]
[]
["ДОХОД"]
[]
[]
[]
["п/п","Наименование услуг",null,"кол-во    детей","стоимость услуг(руб)","кол-во месяцев","итого в год(руб)"]
[]
[1,"Топ- хлоп малыши",null,28,{"v":550,"d":"550.00"},8,{"$f":"D10*E10*F10","v":123200}]
[2,"Ритмическая мозаика",null,55,{"v":550,"d":"550.00"},8,{"$f":"D11*E11*F11","v":242000}]
[3,"ОРИГАМИ",null,16,{"v":550,"d":"550.00"},8,70400]
[4,"От звука к букве",null,20,{"v":550,"d":"550.00"},8,88000]
[5,"Заниматика",null,30,{"v":550,"d":"550.00"},8,132000]
[6,"Шах и Мат",null,38,{"v":550,"d":"550.00"},8,167200]
[7,"Весёлый английский",null,46,{"v":550,"d":"550.00"},8,202400]
[8,"Сказкотерапия",null,42,{"v":550,"d":"550.00"},8,184800]
[9,"АБВГДейка",null,25,{"v":550,"d":"550.00"},8,110000]
[10,"Аквафитнес",null,35,{"v":700,"d":"700.00"},8,196000]
[11,"Дежурная группа",null,34,{"v":300,"d":"300.00"},12,122400]
[30,{"$nulls":5},0]
[31,{"$nulls":5},0]
[32,{"$nulls":5},0]
[33,{"$nulls":5},0]
[34,{"$nulls":5},0]
[35,{"$nulls":5},0]
[36,{"$nulls":5},0]
[37,{"$nulls":5},0]
[38,{"$nulls":5},0]
[39,{"$nulls":5},0]
[40,{"$nulls":5},0]
[41,{"$nulls":5},0]
[42,{"$nulls":5},0]
[43,{"$nulls":5},0]
[44,{"$nulls":5},0]
[45,{"$nulls":5},0]
[null,"Итого платные услуги",{"$nulls":4},{"$f":"SUM(G10:G36)","v":1638400}]
[null,"Услуги охраны",null,300,{"v":100,"d":"100.00"},12]
[null,"Спонсорская помощь",{"$nulls":4},0]
[null,"Возмещение коммунальных услуг",{"$nulls":4},0]
[null,"Доходы от сдачи в аренду",{"$nulls":4},0]
[null,null,"ВСЕГО",{"$nulls":3},{"$f":"G37+G38+G39+G40+G41","v":{"v":1638400,"d":"1,638,400.00"}}]
["РАСХОД"]
[]
["КОСГУ","Доп.ЭК","Наименование показателя",null,null,"Сумма(руб)"]
[{"$nulls":5},"платные кружки","услуги охраны, спонсорская помощь, доходы от сдачи в аренду"]
[{"$nulls":5},"ДКР 521","ДКР 523"]
[{"$nulls":5},{"$f":"G37","v":1638400},{"$f":"G38+G39+G40+G41","v":0}]
["Заработная плата",{"$nulls":7},{"$f":"(F50+F51+F57+F58)/G37","v":0.7499993896484375}]
[211,211004,"Заработная плата педагогического персонала",null,null,616098]
[211,211005,"Заработная плата вспомогательного персонала (руководителей, учебно-вспомогательного персонала, обслуживающего персонала)",null,null,327680]
["Прочие выплаты"]
[212,212004,"Возмещение работникам (сотрудникам) расходов по найму жилых помещений при служебных командировках",null,null,0,{"$nulls":7},{"$f":"F50+F51+F57+F58","v":{"v":1228799,"d":"1228799.00"}}]
[212,212005,"Возмещение работникам (сотрудникам) расходов по проезду при служебных командировках",null,null,0]
[212,212006,"Суточные работникам (сотрудникам) при служебных командировках",null,null,0]
["Начисления на оплату труда"]
[213,213004,"Начисление на зарплату педагогического персонала               30,2%",null,null,{"$f":"ROUND((F50*0.302),0)","v":{"v":186062,"d":"186062.00"}}]
[213,213005,"Начисления на заработную плату вспомогательного персонала (руководителей, учебно-вспомогательного персонала, обслуживающего персонала)   30,2%",null,null,{"$f":"ROUND((F51*0.302),0)","v":{"v":98959,"d":"98959.00"}}]
["Услуги связи"]
[221,221001,"Услуги телефонной связи (абонентская и повременная плата (ежемесячный платеж) за местные, междугородные, международные переговоры)",null,null,0]
[221,221002,"Плата за предоставление доступа (разовый платеж) к телефонной линии связи и Интернет",null,null,0]
[221,221010,"Услуги сотовой связи",null,null,0]
[221,221012,"Плата за услуги сети Интернет",null,null,0]
[221,221099,"Прочие услуги связи",null,null,0]
["Транспортные услуги"]
[222,222012,"транспортные услуги по перевозке школьников",null,null,0]
[222,222010,"прочие транспортные услуги",null,null,0]
["Коммунальные услуги"]
[223,223001,"Электроснабжение",null,null,0]
[223,223002,"Теплоснабжение",null,null,0]
[223,223004,"Водоснабжение",null,null,0]
["Работы, услуги по содержанию имущества"]
[225,"225001","Обслуживание охранной и пожарной сигнализации ",null,null,0]
[225,"225002","Содержание в чистоте помещений, зданий, дворов, иного недвижимого имущества",null,null,0]
[225,"225003","Проведение работ по ремонту и восстановлению эффективности функционирования коммунальных инженерных систем и коммуникаций, осуществляемые сверх регламентированного условиями поставки коммунальных услуг перечня работ (технологических нужд)",null,null,0]
[225,"225004","Обеспечение функционирования и поддержка (восстановление) работоспособности объектов нефинансовых активов",null,null,0]
[225,225007,"Текущий ремонт зданий",null,null,0]
[225,"225009","Обеспечение функционирования и поддержка работоспособности прикладного и системного программного обеспечения",null,null,0]
[225,"225010","Техническое обслуживание аппаратного обеспечения (оргтехника, медицинское оборудование, компьютерная техника и т.д.), включающее контроль технического состояния",null,null,20000,null,null,"заправка картриджей для автономных учреждений"]
[225,225011,"Техническое обслуживание транспортных средств",null,null,0]
[225,225012,"Ремонт транспортных средств",null,null,0]
[225,225013,"Технический осмотр транспортных средств",null,null,0]
[225,225014,"Содержание транспортных средств (мойка и т.д.)",null,null,0]
[225,225015,"Расходы на техническое обслуживание и ремонт оборудования (торговое, кухонное, офисное, лифты и т.п.)",null,null,0,null,null,"заправка картриджей для буджетных учреждений"]
[225,225016,"Содержание в чистоте имущества, кроме недвижимого",null,null,0]
[225,225035,"техническое ообслуживание приборов учета",null,null,0]
[225,225036,"Противопожарные мероприятия (огнезащитная обработка чердачных перекрытий, замеры сопротивления изоляции, зарядка огнетушителей, опрессовка проводов)",null,null,0]
[225,225037,"Содержание и ремонт объектов озеленения",null,null,0]
[225,225099,"Прочие работы, услуги по содержанию имущества",null,null,0]
["Прочие работы, услуги"]
[226,226001,"Подписка ",null,null,0]
[226,226002,"Зарплата внештатных сотрудников",null,null,0]
[226,226003,"Организация питания ",null,null,0]
[226,226004,"Услуги вневедомтсвенной (в том числе пожарной) охраны",null,null,0,360000]
[226,226005,"Установка и монтаж локальных вычислительных сетей, систем охранной и пожарной сигнализации, видеонаблюдения, контроля доступа",null,null,0]
[226,226006,"За участие в семинарах, совещаниях, конференциях, курсах повышения квалификации, проф.обучение, за образовательные услуги, организация и проведение совещаний, конкурсов, олимпиад, выставок, мероприятий, конференций, соревнований, экскурсий",null,null,0]
[226,226010,"Приобретение неисключительных (пользовательский) прав на программное обеспечение (отраслевых, бухгалтерских прогамм)",null,null,0]
[226,226013,"Приобретение и обновление справочно-информационных баз данных (Гарант, Консультант и др.)",null,null,0]
[226,226014,"Обучение сотрудников в области информационно-коммуникационных технологий",null,null,0]
[226,"226016","Монтажные и пуско-наладочные работы поставляемых технических средств в области информационно-коммуникационных технологий",null,null,0]
[226,"226021","Услуги по страхованию ",null,null,0]
[226,226022,"Типографские работы, услуги",null,null,10000]
[226,226023,"Размещение объявлений, рекламы в средствах массовой информации, расходы на теле- радиопрограммы, на видеоролики",null,null,0]
[226,226024,"Оплата услуг по проживанию в жилых помещениях (найм жилого помещения) при служебных командировках по договорам гражданско-правового характера (для внештатных сотрудников)",null,null,0]
[226,226025,"Услуги адвокатов, нотариусов, переводчиков, экспертов, инкассаторов",null,null,0]
[226,226027,"Проведение инвентаризации, паспортизации основных средств",null,null,0]
[226,226031,"Оплата медицинских осмотров",null,null,0]
[226,226036,"Услуги по страхованию транспортных средств (ОСАГО,КАСКО)",null,null,0]
[226,226038,"Оплата за проживание в жилых помещениях (найм жилого помещения) при служебных командировках работников (сотрудников)",null,null,0]
[226,226050,"Услуги охраны с помощью кнопки тревожной сигнализации (КТС)",null,null,0]
[226,226099,"Прочие работы, услуги",null,null,0]
["Прочие расходы"]
[290,290003,"Штрафы, пени и другие экономические санкции",null,null,10000]
[290,290005,"Прочие налоги, в т.ч. госпошлины",null,null,0]
[290,290007,"Возмещение морального вреда по решению судебных органов и оплата судебных издержек",null,null,0]
[290,290011,"Приобретение (изготовление) подарочной и сувенирной продукции (позравительные открытки, адреса, почетные грамоты, дипломы, благодарственные письма, цветы, сувенирная продукция, медали, кубки, призы, подарки)",null,null,0]
[290,290099,"Прочие расходы",null,null,0]
["Увеличение стоимости основных средств"]
[310,"310001","Приобретение огнетушителей",null,null,0]
[310,"310004","Приобретение автоматизированных рабочих мест, транспортно-коммуникационного оборудования, серверного, периферийного и т.п. оборудования",null,null,0]
[310,"310006","Приобретение медицинского инструментария"]
[310,310007,"Приобретение основных средств (оборудования, мебели, транспортных средств, техники, инструментов, хозинвентаря, книги и т. д.)",null,null,350000]
[310,310099,"Прочие расходы по увеличению стоимости основных средств"]
["Увеличение стоимости материальных запасов"]
[340,340002,"Закупка мягкого инвентаря, одежды, обмундирования",null,null,16000]
[340,340003,"Закупка запчастей к  оборудованию",null,null,0]
[340,340004,"Закупка материалов, используемых в процессе обучения",null,null,0]
[340,340005,"Продукты питания (за исключением молока и молочных продуктов)",null,null,0]
[340,340006,"Закупка медикаментов, перевязочных средств                  ",null,null,0]
[340,340013,"Закупка запчастей к транспортным средствам",null,null,0]
[340,340014,"Приобретение автошин",null,null,0]
[340,340015,"Моторные масла и спец.смазки",null,null,0]
[340,"340017","Приобретение канцелярских, хозяйственных товаров, расходных материалов"]
[340,340018,"Закупка молока и молочных продуктов",null,null,0]
[340,340099,"Прочие расходы по увеличению стоимости материальных запасов",null,null,3601]
[null,"ВСЕГО:",{"$nulls":3},{"$f":"SUM(F50:F135)","v":{"v":1638400,"d":"1,638,400.00"}},{"$f":"SUM(G50:G135)","v":{"v":360000,"d":"360,000.00"}}]
[]
[null,"Расшифровка  ДОУ № 404 "]
[225010,"заправка картриджей - 8*10х250=20000 руб."]
[226004,"ЧОП;  12 мес.х 30000=360000"]
[226022,"заказ файлов -кармашек  - распечатка  100*100=10000,00"]
[290003,"штрафы,пени 10000 руб"]
[310007,"приобретение книг для  УМК -200*100=20000,00"]
[null,"приобретение детских шкафчиков 25*5000=125000"]
[null,"приобретение детских стульев 150*900=135000,00"]
[null,"приобретение ноотбука 2*25=50000,00"]
[null,"приобретение стоек для колонок муз.зал-2*10 000=20000"]
[340002,"приобретение комплекта детского белья- 40*400=16000"]
[340099,"средство чистящее \"Пемолюкс\" - 30х60 руб.=1800 руб."]
[null,"дез.средство  Астера 2*900,5=1801"]

{"sheet":"Лист2","index":1,"n_rows":0,"n_cols":0,"rows_kept":0}

{"sheet":"Лист3","index":2,"n_rows":0,"n_cols":0,"rows_kept":0}